[Event "IV Elllobregat Open Chess Tmnt"]
[Site "Sant Boi de Llobregat, Spain"]
[Date "2023.12.03"]
[Round "4.27"]
[White "Bharath, Subramaniyam H"]
[Black "Suyarov, Mukhammadzokhid"]
[Result "1-0"]
[TimeControl "90min/40moves + 15min/end + 30sec from move 1"]
[WhiteFideId "46634827"]
[BlackFideId "14210495"]
[WhiteElo "2504"]
[BlackElo "2359"]

1. d4 {[%clk 01:30:19]} {[%emt 00:00:29]} e6 {[%clk 01:30:32]} {[%emt
00:00:40]} 2. Bf4 {[%clk 01:30:29]} {[%emt 00:00:19]} Nf6 {[%clk 01:30:50]}
{[%emt 00:00:12]} 3. e3 {[%clk 01:30:52]} {[%emt 00:00:09]} c5 {[%clk
01:30:39]} {[%emt 00:00:41]} 4. Nf3 {[%clk 01:30:49]} {[%emt 00:00:33]} Nc6
{[%clk 01:31:03]} {[%emt 00:00:07]} 5. Nbd2 {[%clk 01:29:58]} {[%emt 00:01:21]}
d5 {[%clk 01:31:24]} {[%emt 00:00:08]} 6. c3 {[%clk 01:30:11]} {[%emt
00:00:18]} Be7 {[%clk 01:31:45]} {[%emt 00:00:09]} 7. Ne5 {[%clk 01:27:59]}
{[%emt 00:02:42]} Qb6 {[%clk 01:25:54]} {[%emt 00:06:21]} 8. Rb1 {[%clk
01:20:12]} {[%emt 00:08:18]} Nd7 {[%clk 01:21:19]} {[%emt 00:05:05]} 9. Nxd7
{[%clk 01:08:59]} {[%emt 00:11:42]} Bxd7 {[%clk 01:21:33]} {[%emt 00:00:16]} 10.
Bd3 {[%clk 01:09:27]} {[%emt 00:00:02]} O-O {[%clk 01:08:24]} {[%emt 00:13:39]}
11. O-O {[%clk 00:58:41]} {[%emt 00:11:15]} f5 {[%clk 01:01:24]} {[%emt
00:07:32]} 12. Nf3 {[%clk 00:50:05]} {[%emt 00:09:06]} Be8 {[%clk 01:01:13]}
{[%emt 00:00:41]} 13. Be2 {[%clk 00:40:14]} {[%emt 00:10:21]} Bh5 {[%clk
00:58:30]} {[%emt 00:03:12]} 14. h3 {[%clk 00:37:50]} {[%emt 00:02:55]} a6
{[%clk 00:55:08]} {[%emt 00:03:52]} 15. Ne1 {[%clk 00:29:25]} {[%emt 00:08:55]}
Bxe2 {[%clk 00:49:51]} {[%emt 00:05:47]} 16. Qxe2 {[%clk 00:28:21]} {[%emt
00:01:35]} Qa5 {[%clk 00:49:59]} {[%emt 00:00:21]} 17. a3 {[%clk 00:23:27]}
{[%emt 00:05:25]} c4 {[%clk 00:42:39]} {[%emt 00:07:50]} 18. g4 {[%clk
00:22:21]} {[%emt 00:01:35]} Qd8 {[%clk 00:38:13]} {[%emt 00:04:57]} 19. Kh1
{[%clk 00:17:34]} {[%emt 00:05:17]} h6 {[%clk 00:23:05]} {[%emt 00:15:38]} 20.
Rg1 {[%clk 00:14:03]} {[%emt 00:04:00]} Kh7 {[%clk 00:22:23]} {[%emt 00:01:11]}
21. g5 {[%clk 00:09:28]} {[%emt 00:05:06]} g6 {[%clk 00:22:37]} {[%emt
00:00:16]} 22. gxh6 {[%clk 00:09:07]} {[%emt 00:00:52]} g5 {[%clk 00:18:16]}
{[%emt 00:04:51]} 23. Qh5 {[%clk 00:08:21]} {[%emt 00:01:17]} Qe8 {[%clk
00:18:33]} {[%emt 00:00:12]} 24. Qxe8 {[%clk 00:07:41]} {[%emt 00:01:10]} Raxe8
{[%clk 00:18:57]} {[%emt 00:00:06]} 25. Bxg5 {[%clk 00:08:03]} {[%emt
00:00:08]} Bxg5 {[%clk 00:18:35]} {[%emt 00:00:51]} 26. Rxg5 {[%clk 00:08:31]}
{[%emt 00:00:02]} f4 {[%clk 00:18:43]} {[%emt 00:00:22]} 27. Ng2 {[%clk
00:05:59]} {[%emt 00:03:02]} fxe3 {[%clk 00:15:06]} {[%emt 00:04:07]} 28. Nxe3
{[%clk 00:05:33]} {[%emt 00:00:56]} Rxf2 {[%clk 00:14:14]} {[%emt 00:01:22]} 29.
Rg7+ {[%clk 00:04:02]} {[%emt 00:02:01]} Kh8 {[%clk 00:13:50]} {[%emt
00:00:53]} 30. Ng4 {[%clk 00:04:08]} {[%emt 00:00:24]} Rf5 {[%clk 00:12:59]}
{[%emt 00:01:21]} 31. Rxb7 {[%clk 00:04:01]} {[%emt 00:00:37]} Ne7 {[%clk
00:12:13]} {[%emt 00:01:17]} 32. Ne5 {[%clk 00:02:56]} {[%emt 00:01:35]} Kh7
{[%clk 00:11:35]} {[%emt 00:01:08]} 33. Nc6 {[%clk 00:02:48]} {[%emt 00:00:38]}
Rf7 {[%clk 00:11:54]} {[%emt 00:00:10]} 34. Re1 {[%clk 00:03:03]} {[%emt
00:00:16]} Kxh6 {[%clk 00:12:16]} {[%emt 00:00:09]} 35. Ne5 {[%clk 00:01:36]}
{[%emt 00:01:57]} Rff8 {[%clk 00:11:11]} {[%emt 00:01:35]} 36. Nd7 {[%clk
00:01:03]} {[%emt 00:01:03]} Rf2 {[%clk 00:11:35]} {[%emt 00:00:06]} 37. Rxe6+
{[%clk 00:01:29]} {[%emt 00:00:04]} Kg5 {[%clk 00:11:52]} {[%emt 00:00:14]} 38.
Ne5 {[%clk 00:01:42]} {[%emt 00:00:17]} 1-0

[Event "IV Elllobregat Open Chess Tmnt"]
[Site "Sant Boi de Llobregat, Spain"]
[Date "2023.12.03"]
[Round "4.28"]
[White "Begmuratov, Khumoyun"]
[Black "Madaminov, Mukhiddin"]
[Result "1/2-1/2"]
[TimeControl "90min/40moves + 15min/end + 30sec from move 1"]
[WhiteFideId "14210207"]
[BlackFideId "14210703"]
[WhiteElo "2371"]
[BlackElo "2494"]

1. e4 {[%emt 00:00:05]} c5 {[%emt 00:01:43]} 2. Nf3 {[%emt 00:00:10]} d6 {[%emt
00:03:10]} 3. d4 {[%emt 00:02:11]} cxd4 {[%emt 00:00:14]} 4. Nxd4 {[%emt
00:00:05]} Nf6 {[%emt 00:00:31]} 5. Nc3 {[%emt 00:00:05]} Nc6 {[%emt 00:00:08]}
6. f3 {[%emt 00:00:06]} e5 {[%emt 00:00:54]} 7. Nb3 {[%emt 00:00:08]} Be7
{[%emt 00:00:06]} 8. Be3 {[%emt 00:00:10]} O-O {[%emt 00:00:09]} 9. Qd2 {[%emt
00:12:18]} Be6 {[%emt 00:00:32]} 10. Nd5 {[%emt 00:09:44]} a5 {[%emt 00:07:39]}
11. Bb6 {[%emt 00:11:07]} Qd7 {[%emt 00:02:33]} 12. Bb5 {[%emt 00:12:32]} Bd8
{[%emt 00:33:25]} 13. Bxa5 {[%emt 00:04:01]} Rxa5 {[%emt 00:05:28]} 14. Bxc6
{[%emt 00:02:30]} bxc6 {[%emt 00:00:21]} 15. Nxf6+ {[%emt 00:00:06]} gxf6
{[%emt 00:00:06]} 16. Nxa5 {[%emt 00:00:04]} Bb6 {[%emt 00:00:12]} 17. Rd1
{[%emt 00:15:54]} Qa7 {[%emt 00:06:20]} 18. Nxc6 {[%emt 00:00:25]} Qxa2 {[%emt
00:17:57]} 19. Qh6 {[%emt 00:02:18]} Re8 {[%emt 00:02:15]} 20. Qxf6 {[%emt
00:00:15]} Qxb2 {[%emt 00:02:15]} 21. Qg5+ {[%emt 00:00:59]} Kf8 {[%emt
00:02:29]} 22. Qh6+ {[%emt 00:00:37]} Kg8 {[%emt 00:01:25]} 23. Qg5+ {[%emt
00:00:06]} Kf8 {[%emt 00:00:04]} 24. Qh6+ {[%emt 00:00:06]} Kg8 {[%emt
00:00:21]} 1/2-1/2

[Event "IV Elllobregat Open Chess Tmnt"]
[Site "Sant Boi de Llobregat, Spain"]
[Date "2023.12.03"]
[Round "4.29"]
[White "Velten, Paul"]
[Black "Anand, Batsukh"]
[Result "1/2-1/2"]
[TimeControl "90min/40moves + 15min/end + 30sec from move 1"]
[WhiteFideId "681091"]
[BlackFideId "4903510"]
[WhiteElo "2489"]
[BlackElo "2369"]

1. d4 {[%clk 01:30:43]} {[%emt 00:00:16]} Nf6 {[%clk 01:30:51]} {[%emt
00:00:06]} 2. c4 {[%clk 01:30:44]} {[%emt 00:00:31]} e6 {[%clk 01:31:15]}
{[%emt 00:00:07]} 3. Nf3 {[%clk 01:30:39]} {[%emt 00:00:34]} d5 {[%clk
01:31:28]} {[%emt 00:00:17]} 4. Nc3 {[%clk 01:30:15]} {[%emt 00:00:54]} Be7
{[%clk 01:31:47]} {[%emt 00:00:10]} 5. Bg5 {[%clk 01:27:52]} {[%emt 00:02:53]}
h6 {[%clk 01:32:04]} {[%emt 00:00:13]} 6. Bh4 {[%clk 01:25:41]} {[%emt
00:02:41]} Nbd7 {[%clk 01:30:51]} {[%emt 00:01:43]} 7. e3 {[%clk 01:24:50]}
{[%emt 00:01:21]} O-O {[%clk 01:30:32]} {[%emt 00:00:48]} 8. cxd5 {[%clk
01:17:08]} {[%emt 00:08:13]} Nxd5 {[%clk 01:24:26]} {[%emt 00:06:36]} 9. Bxe7
{[%clk 01:13:04]} {[%emt 00:04:34]} Qxe7 {[%clk 01:24:20]} {[%emt 00:00:36]} 10.
Rc1 {[%clk 01:12:37]} {[%emt 00:00:56]} Nxc3 {[%clk 01:22:29]} {[%emt
00:02:21]} 11. Rxc3 {[%clk 01:12:33]} {[%emt 00:00:34]} c5 {[%clk 01:20:22]}
{[%emt 00:02:36]} 12. Bb5 {[%clk 01:08:40]} {[%emt 00:04:25]} cxd4 {[%clk
01:14:18]} {[%emt 00:06:34]} 13. Qxd4 {[%clk 01:08:32]} {[%emt 00:00:39]} Nf6
{[%clk 01:10:39]} {[%emt 00:04:07]} 14. Qh4 {[%clk 00:58:40]} {[%emt 00:10:22]}
Bd7 {[%clk 01:06:05]} {[%emt 00:05:04]} 15. Bxd7 {[%clk 00:49:08]} {[%emt
00:10:02]} 1/2-1/2

[Event "IV Elllobregat Open Chess Tmnt"]
[Site "Sant Boi de Llobregat, Spain"]
[Date "2023.12.03"]
[Round "4.30"]
[White "Rakhmatullaev, Almas"]
[Black "Koellner, Ruben Gideon"]
[Result "1-0"]
[TimeControl "90min/40moves + 15min/end + 30sec from move 1"]
[WhiteFideId "14205793"]
[BlackFideId "12993093"]
[WhiteElo "2383"]
[BlackElo "2488"]

1. e4 {[%clk 01:30:32]} {[%emt 00:00:27]} d6 {[%clk 01:30:54]} {[%emt
00:00:06]} 2. d4 {[%clk 01:30:57]} {[%emt 00:00:05]} Nf6 {[%clk 01:31:20]}
{[%emt 00:00:03]} 3. Nc3 {[%clk 01:31:22]} {[%emt 00:00:05]} e5 {[%clk
01:31:43]} {[%emt 00:00:08]} 4. Nf3 {[%clk 01:31:47]} {[%emt 00:00:05]} Nbd7
{[%clk 01:32:07]} {[%emt 00:00:06]} 5. Bc4 {[%clk 01:32:09]} {[%emt 00:00:08]}
Be7 {[%clk 01:32:25]} {[%emt 00:00:12]} 6. a4 {[%clk 01:32:25]} {[%emt
00:00:14]} O-O {[%clk 01:32:31]} {[%emt 00:00:23]} 7. O-O {[%clk 01:32:30]}
{[%emt 00:00:26]} c6 {[%clk 01:32:43]} {[%emt 00:00:18]} 8. h3 {[%clk
01:30:13]} {[%emt 00:02:47]} b6 {[%clk 01:33:04]} {[%emt 00:00:09]} 9. Qe2
{[%clk 01:27:36]} {[%emt 00:03:07]} a6 {[%clk 01:32:48]} {[%emt 00:00:46]} 10.
Rd1 {[%clk 01:23:50]} {[%emt 00:04:15]} Qc7 {[%clk 01:32:54]} {[%emt 00:00:24]}
11. d5 {[%clk 01:12:50]} {[%emt 00:11:31]} cxd5 {[%clk 01:32:29]} {[%emt
00:00:54]} 12. Bxd5 {[%clk 01:11:52]} {[%emt 00:01:28]} Rb8 {[%clk 01:31:50]}
{[%emt 00:01:09]} 13. Bc4 {[%clk 01:09:29]} {[%emt 00:02:53]} Ra8 {[%clk
01:28:00]} {[%emt 00:04:20]} 14. Bd5 {[%clk 01:09:19]} {[%emt 00:00:40]} Bb7
{[%clk 01:24:05]} {[%emt 00:04:26]} 15. Bxb7 {[%clk 01:09:14]} {[%emt
00:00:36]} Qxb7 {[%clk 01:24:29]} {[%emt 00:00:05]} 16. Bg5 {[%clk 01:09:39]}
{[%emt 00:00:05]} h6 {[%clk 01:23:04]} {[%emt 00:01:55]} 17. Bxf6 {[%clk
01:09:21]} {[%emt 00:00:46]} Nxf6 {[%clk 01:23:31]} {[%emt 00:00:05]} 18. Nh2
{[%clk 01:08:53]} {[%emt 00:00:57]} h5 {[%clk 01:21:16]} {[%emt 00:02:46]} 19.
Nf1 {[%clk 00:51:31]} {[%emt 00:17:52]} Rac8 {[%clk 01:19:58]} {[%emt
00:01:47]} 20. Qd3 {[%clk 00:50:17]} {[%emt 00:01:45]} Rc5 {[%clk 01:17:42]}
{[%emt 00:02:46]} 21. Ne3 {[%clk 00:49:53]} {[%emt 00:00:54]} Rfc8 {[%clk
01:18:03]} {[%emt 00:00:08]} 22. Ra3 {[%clk 00:43:01]} {[%emt 00:07:24]} Bf8
{[%clk 01:13:26]} {[%emt 00:05:06]} 23. Rb3 {[%clk 00:42:56]} {[%emt 00:00:35]}
R5c6 {[%clk 01:02:56]} {[%emt 00:11:00]} 24. Ned5 {[%clk 00:38:10]} {[%emt
00:05:15]} Nd7 {[%clk 01:02:18]} {[%emt 00:01:08]} 25. Qf3 {[%clk 00:37:29]}
{[%emt 00:01:11]} g6 {[%clk 00:59:49]} {[%emt 00:02:59]} 26. g4 {[%clk
00:34:57]} {[%emt 00:03:03]} hxg4 {[%clk 00:57:16]} {[%emt 00:03:04]} 27. Qxg4
{[%clk 00:30:10]} {[%emt 00:05:16]} Kg7 {[%clk 00:56:21]} {[%emt 00:01:25]} 28.
Ne2 {[%clk 00:27:00]} {[%emt 00:03:41]} Nf6 {[%clk 00:52:36]} {[%emt 00:04:14]}
29. Nxf6 {[%clk 00:26:33]} {[%emt 00:00:57]} Kxf6 {[%clk 00:53:00]} {[%emt
00:00:06]} 30. Rf3+ {[%clk 00:26:32]} {[%emt 00:00:31]} Ke7 {[%clk 00:53:12]}
{[%emt 00:00:17]} 31. Nc3 {[%clk 00:25:53]} {[%emt 00:01:10]} Rxc3 {[%clk
00:53:15]} {[%emt 00:00:26]} 32. Rxc3 {[%clk 00:23:45]} {[%emt 00:02:38]} Rxc3
{[%clk 00:53:39]} {[%emt 00:00:06]} 33. bxc3 {[%clk 00:24:13]} {[%emt
00:00:02]} Qc6 {[%clk 00:53:55]} {[%emt 00:00:14]} 34. Rb1 {[%clk 00:23:47]}
{[%emt 00:00:56]} Kf6 {[%clk 00:53:37]} {[%emt 00:00:47]} 35. Qf3+ {[%clk
00:20:22]} {[%emt 00:03:56]} Kg7 {[%clk 00:54:01]} {[%emt 00:00:06]} 36. Rb4
{[%clk 00:20:11]} {[%emt 00:00:42]} a5 {[%clk 00:53:35]} {[%emt 00:00:57]} 37.
Rb5 {[%clk 00:20:18]} {[%emt 00:00:24]} Qc4 {[%clk 00:53:59]} {[%emt 00:00:05]}
38. Rxb6 {[%clk 00:20:06]} {[%emt 00:00:42]} Qxa4 {[%clk 00:54:25]} {[%emt
00:00:05]} 39. Rb7 {[%clk 00:20:28]} {[%emt 00:00:09]} Qa2 {[%clk 00:53:02]}
{[%emt 00:01:51]} 40. Qd3 {[%clk 00:35:10]} {[%emt 00:00:48]} Qa1+ {[%clk
01:08:21]} {[%emt 00:00:11]} 41. Kg2 {[%clk 00:35:27]} {[%emt 00:00:14]} Qc1
{[%clk 01:08:46]} {[%emt 00:00:05]} 42. h4 {[%clk 00:34:46]} {[%emt 00:01:11]}
Qf4 {[%clk 01:02:57]} {[%emt 00:06:19]} 43. Qf3 {[%clk 00:35:02]} {[%emt
00:00:13]} 1-0

[Event "IV Elllobregat Open Chess Tmnt"]
[Site "Sant Boi de Llobregat, Spain"]
[Date "2023.12.03"]
[Round "4.31"]
[White "Seo, Jung Min"]
[Black "Bakhrillaev, Bakhrom"]
[Result "1-0"]
[TimeControl "90min/40moves + 15min/end + 30sec from move 1"]
[WhiteFideId "1734687"]
[BlackFideId "14212285"]
[WhiteElo "2480"]
[BlackElo "2332"]

1. d4 {[%emt 00:01:20]} Nf6 {[%emt 00:00:08]} 2. c4 {[%emt 00:00:02]} g6 {[%emt
00:00:06]} 3. Nc3 {[%emt 00:00:02]} Bg7 {[%emt 00:00:04]} 4. e4 {[%emt
00:00:02]} d6 {[%emt 00:00:13]} 5. Be2 {[%emt 00:00:03]} O-O {[%emt 00:00:13]}
6. h4 {[%emt 00:00:03]} c5 {[%emt 00:00:04]} 7. d5 {[%emt 00:00:04]} b5 {[%emt
00:00:07]} 8. cxb5 {[%emt 00:01:30]} a6 {[%emt 00:00:07]} 9. a4 {[%emt
00:01:41]} axb5 {[%emt 00:00:44]} 10. Bxb5 {[%emt 00:00:03]} Qa5 {[%emt
00:02:30]} 11. Bd2 {[%emt 00:01:45]} Ba6 {[%emt 00:00:14]} 12. Ra3 {[%emt
00:04:51]} Nbd7 {[%emt 00:03:19]} 13. Nf3 {[%emt 00:00:34]} Bxb5 {[%emt
00:38:45]} 14. Nxb5 {[%emt 00:00:36]} Qb6 {[%emt 00:00:24]} 15. Qc2 {[%emt
00:06:02]} c4 {[%emt 00:03:51]} 16. O-O {[%emt 00:04:09]} Nc5 {[%emt 00:00:43]}
17. Be3 {[%emt 00:05:55]} Ng4 {[%emt 00:02:41]} 18. Bd4 {[%emt 00:12:34]} Bxd4
{[%emt 00:01:09]} 19. Nfxd4 {[%emt 00:00:08]} Ne5 {[%emt 00:00:07]} 20. h5
{[%emt 00:06:31]} Rfc8 {[%emt 00:06:32]} 21. hxg6 {[%emt 00:21:55]} fxg6 {[%emt
00:02:57]} 22. Nc6 {[%emt 00:00:49]} Nxc6 {[%emt 00:01:29]} 23. dxc6 {[%emt
00:00:15]} Qxc6 {[%emt 00:01:06]} 24. Qxc4+ {[%emt 00:00:07]} e6 {[%emt
00:06:56]} 25. Re1 {[%emt 00:03:23]} d5 {[%emt 00:11:39]} 26. exd5 {[%emt
00:00:25]} Qxd5 {[%emt 00:00:11]} 27. Qxd5 {[%emt 00:03:26]} exd5 {[%emt
00:00:05]} 28. Rc1 {[%emt 00:01:17]} Na6 {[%emt 00:01:29]} 29. Rxc8+ {[%emt
00:03:37]} Rxc8 {[%emt 00:00:01]} 30. Rc3 {[%emt 00:00:28]} Re8 {[%emt
00:01:46]} 31. Kf1 {[%emt 00:02:51]} Re4 {[%emt 00:04:43]} 32. b3 {[%emt
00:00:09]} Kg7 {[%emt 00:00:26]} 33. f3 {[%emt 00:00:14]} Rh4 {[%emt 00:02:13]}
34. Kg1 {[%emt 00:02:17]} Rh5 {[%emt 00:04:32]} 35. Rc6 {[%emt 00:02:45]} Nb4
{[%emt 00:00:09]} 36. Rb6 {[%emt 00:00:51]} Re5 {[%emt 00:01:00]} 37. Nd4
{[%emt 00:01:14]} Re1+ {[%emt 00:00:05]} 38. Kh2 {[%emt 00:00:04]} Nd3 {[%emt
00:00:23]} 39. a5 {[%emt 00:00:20]} Ra1 {[%emt 00:01:34]} 40. a6 {[%emt
00:07:05]} Nc5 {[%emt 00:02:41]} 41. Ne6+ {[%emt 00:00:05]} Nxe6 {[%emt
00:00:04]} 42. Rxe6 {[%emt 00:00:03]} Kf7 {[%emt 00:00:07]} 43. Rc6 {[%emt
00:01:11]} Rb1 {[%emt 00:01:21]} 44. a7 {[%emt 00:17:14]} Ra1 {[%emt 00:00:45]}
45. Rc7+ {[%emt 00:00:03]} Ke6 {[%emt 00:00:55]} 46. Kg3 {[%emt 00:00:33]} h5
{[%emt 00:03:51]} 47. b4 {[%emt 00:00:41]} Kd6 {[%emt 00:00:56]} 48. Rg7 {[%emt
00:00:03]} Kc6 {[%emt 00:00:38]} 49. Rxg6+ {[%emt 00:00:04]} Kb5 {[%emt
00:00:14]} 50. Rd6 {[%emt 00:00:04]} Kc4 {[%emt 00:00:46]} 51. Rd7 {[%emt
00:00:03]} d4 {[%emt 00:00:27]} 52. b5 {[%emt 00:00:08]} Kxb5 {[%emt 00:00:24]}
53. Rxd4 {[%emt 00:00:04]} Rxa7 {[%emt 00:00:05]} 54. Rd5+ {[%emt 00:00:02]}
Kc6 {[%emt 00:00:06]} 55. Rxh5 {[%emt 00:00:04]} Rg7+ {[%emt 00:00:04]} 56. Kf2
{[%emt 00:00:05]} Kd6 {[%emt 00:00:04]} 57. g4 {[%emt 00:00:03]} Ke6 {[%emt
00:00:06]} 58. Kg3 {[%emt 00:00:03]} Ra7 {[%emt 00:00:04]} 59. Rb5 {[%emt
00:00:07]} Kf6 {[%emt 00:00:09]} 60. Rb6+ {[%emt 00:00:05]} Kg7 {[%emt
00:00:06]} 61. g5 {[%emt 00:00:04]} Ra4 {[%emt 00:00:10]} 62. f4 {[%emt
00:00:29]} Kf7 {[%emt 00:00:39]} 63. Kg4 {[%emt 00:00:10]} Kg7 {[%emt
00:00:03]} 64. Rd6 {[%emt 00:00:23]} Kf7 {[%emt 00:00:07]} 65. g6+ {[%emt
00:00:17]} Kg7 {[%emt 00:00:04]} 66. Kg5 {[%emt 00:00:02]} Ra5+ {[%emt
00:00:13]} 67. f5 {[%emt 00:00:02]} Ra1 {[%emt 00:00:31]} 68. Rd7+ {[%emt
00:00:04]} Kf8 {[%emt 00:00:11]} 69. Rb7 {[%emt 00:00:39]} Ra2 {[%emt
00:00:16]} 70. Rb8+ {[%emt 00:00:14]} 1-0

[Event "IV Elllobregat Open Chess Tmnt"]
[Site "Sant Boi de Llobregat, Spain"]
[Date "2023.12.03"]
[Round "4.32"]
[White "Sorensen, Hampus"]
[Black "Hulka, Valentyn"]
[Result "1/2-1/2"]
[TimeControl "90min/40moves + 15min/end + 30sec from move 1"]
[WhiteFideId "8703884"]
[BlackFideId "34107061"]
[WhiteElo "2479"]
[BlackElo "2310"]

1. d4 {[%emt 00:03:00]} Nf6 {[%emt 00:00:16]} 2. c4 {[%emt 00:00:14]} e6 {[%emt
00:00:06]} 3. Bf4 {[%emt 00:00:20]} d5 {[%emt 00:13:39]} 4. cxd5 {[%emt
00:00:12]} exd5 {[%emt 00:03:55]} 5. e3 {[%emt 00:00:18]} c6 {[%emt 00:02:06]}
6. Bd3 {[%emt 00:06:35]} Bg4 {[%emt 00:06:07]} 7. Ne2 {[%emt 00:10:17]} Bd6
{[%emt 00:10:56]} 8. f3 {[%emt 00:04:23]} Bxf4 {[%emt 00:06:30]} 9. exf4 {[%emt
00:06:45]} Bc8 {[%emt 00:03:41]} 10. Nbc3 {[%emt 00:00:25]} a5 {[%emt
00:05:20]} 11. g4 {[%emt 00:03:46]} h5 {[%emt 00:14:40]} 12. g5 {[%emt
00:00:38]} Ng8 {[%emt 00:00:05]} 13. h4 {[%emt 00:02:59]} Ne7 {[%emt 00:00:31]}
14. Ng3 {[%emt 00:05:57]} Qd6 {[%emt 00:01:03]} 15. Nce2 {[%emt 00:08:37]} g6
{[%emt 00:01:30]} 16. Qc2 {[%emt 00:03:02]} Na6 {[%emt 00:00:51]} 17. a3 {[%emt
00:00:07]} Nc7 {[%emt 00:00:22]} 18. Qd2 {[%emt 00:11:00]} Ne6 {[%emt
00:01:45]} 19. Qe3 {[%emt 00:10:25]} Ng7 {[%emt 00:02:41]} 20. Qe5 {[%emt
00:01:02]} Qxe5 {[%emt 00:00:12]} 21. fxe5 {[%emt 00:00:05]} Bf5 {[%emt
00:03:37]} 22. Nxf5 {[%emt 00:00:22]} Nexf5 {[%emt 00:00:22]} 23. Kf2 {[%emt
00:01:34]} Kd7 {[%emt 00:00:27]} 24. Rad1 {[%emt 00:00:41]} Rhe8 {[%emt
00:01:00]} 25. Rd2 {[%emt 00:06:24]} Ke7 {[%emt 00:04:22]} 26. Bb1 {[%emt
00:00:35]} Kd7 {[%emt 00:01:16]} 27. Ng3 {[%emt 00:01:16]} Ke6 {[%emt
00:00:56]} 28. Ba2 {[%emt 00:01:45]} Kd7 {[%emt 00:02:01]} 29. Bb3 {[%emt
00:02:27]} Ra6 {[%emt 00:00:34]} 30. Bc2 {[%emt 00:01:22]} Ke6 {[%emt
00:00:09]} 31. Bd3 {[%emt 00:00:48]} Rb6 {[%emt 00:01:36]} 32. Bf1 {[%emt
00:00:13]} Ke7 {[%emt 00:01:50]} 33. Nxf5+ {[%emt 00:00:43]} Nxf5 {[%emt
00:00:06]} 34. Bh3 {[%emt 00:00:09]} Ke6 {[%emt 00:05:24]} 35. Rc1 {[%emt
00:00:56]} Rb3 {[%emt 00:00:23]} 36. Rc3 {[%emt 00:01:21]} Rxc3 {[%emt
00:01:55]} 37. bxc3 {[%emt 00:00:02]} a4 {[%emt 00:00:07]} 38. Rb2 {[%emt
00:02:29]} b5 {[%emt 00:00:05]} 39. Ke2 {[%emt 00:00:53]} Kxe5 {[%emt
00:00:12]} 1/2-1/2

[Event "IV Elllobregat Open Chess Tmnt"]
[Site "Sant Boi de Llobregat, Spain"]
[Date "2023.12.03"]
[Round "4.33"]
[White "Lucas, Arthur"]
[Black "Gines Esteo, Pedro Antonio"]
[Result "1/2-1/2"]
[TimeControl "90min/40moves + 15min/end + 30sec from move 1"]
[WhiteFideId "26093073"]
[BlackFideId "32080190"]
[WhiteElo "2316"]
[BlackElo "2471"]

1. e4 {[%clk 01:30:57]} {[%emt 00:00:02]} c6 {[%clk 01:26:59]} {[%emt
00:03:52]} 2. d4 {[%clk 01:31:08]} {[%emt 00:00:28]} d5 {[%clk 01:27:22]}
{[%emt 00:00:07]} 3. f3 {[%clk 01:31:29]} {[%emt 00:00:09]} e6 {[%clk
01:24:46]} {[%emt 00:03:05]} 4. Nc3 {[%clk 01:31:51]} {[%emt 00:00:08]} b6
{[%clk 01:23:17]} {[%emt 00:01:59]} 5. Be3 {[%clk 01:29:47]} {[%emt 00:02:34]}
Ba6 {[%clk 01:22:46]} {[%emt 00:01:01]} 6. Bxa6 {[%clk 01:22:14]} {[%emt
00:08:04]} Nxa6 {[%clk 01:23:13]} {[%emt 00:00:03]} 7. Qe2 {[%clk 01:22:38]}
{[%emt 00:00:06]} Nc7 {[%clk 01:23:03]} {[%emt 00:00:40]} 8. Nh3 {[%clk
01:21:20]} {[%emt 00:01:48]} Bb4 {[%clk 01:16:18]} {[%emt 00:07:15]} 9. O-O
{[%clk 01:18:27]} {[%emt 00:03:23]} Ne7 {[%clk 01:10:16]} {[%emt 00:06:32]} 10.
Nd1 {[%clk 01:10:14]} {[%emt 00:08:43]} Ng6 {[%clk 01:00:19]} {[%emt 00:10:26]}
11. e5 {[%clk 00:57:38]} {[%emt 00:13:07]} f5 {[%clk 00:55:17]} {[%emt
00:05:32]} 12. a4 {[%clk 00:39:17]} {[%emt 00:18:52]} Be7 {[%clk 00:53:07]}
{[%emt 00:02:39]} 13. f4 {[%clk 00:34:58]} {[%emt 00:04:49]} c5 {[%clk
00:48:24]} {[%emt 00:05:13]} 14. c3 {[%clk 00:32:44]} {[%emt 00:02:45]} Qd7
{[%clk 00:47:01]} {[%emt 00:01:53]} 15. Kh1 {[%clk 00:32:00]} {[%emt 00:01:14]}
c4 {[%clk 00:42:24]} {[%emt 00:05:06]} 16. Bg1 {[%clk 00:25:48]} {[%emt
00:06:42]} O-O-O {[%clk 00:40:45]} {[%emt 00:02:10]} 17. Ne3 {[%clk 00:25:32]}
{[%emt 00:00:46]} h5 {[%clk 00:37:26]} {[%emt 00:03:48]} 18. b3 {[%clk
00:23:10]} {[%emt 00:02:53]} cxb3 {[%clk 00:37:36]} {[%emt 00:00:20]} 19. Rfb1
{[%clk 00:23:36]} {[%emt 00:00:04]} Qc6 {[%clk 00:31:40]} {[%emt 00:06:26]} 20.
Rxb3 {[%clk 00:22:59]} {[%emt 00:01:06]} Kd7 {[%clk 00:18:03]} {[%emt
00:14:08]} 21. c4 {[%clk 00:20:31]} {[%emt 00:02:58]} dxc4 {[%clk 00:18:31]}
{[%emt 00:00:02]} 22. Rc3 {[%clk 00:19:40]} {[%emt 00:01:21]} Ke8 {[%clk
00:16:21]} {[%emt 00:02:40]} 23. Rxc4 {[%clk 00:16:49]} {[%emt 00:03:21]} Qb7
{[%clk 00:16:09]} {[%emt 00:00:42]} 24. Rxc7 {[%clk 00:10:23]} {[%emt
00:06:56]} Qxc7 {[%clk 00:16:31]} {[%emt 00:00:08]} 25. d5 {[%clk 00:10:51]}
{[%emt 00:00:02]} Rxd5 {[%clk 00:10:43]} {[%emt 00:06:18]} 26. Nxd5 {[%clk
00:11:15]} {[%emt 00:00:05]} exd5 {[%clk 00:11:10]} {[%emt 00:00:03]} 27. Rd1
{[%clk 00:03:12]} {[%emt 00:08:34]} Qc4 {[%clk 00:08:45]} {[%emt 00:02:55]} 28.
Qf3 {[%clk 00:03:20]} {[%emt 00:00:22]} Nf8 {[%clk 00:06:27]} {[%emt 00:02:48]}
29. Rd4 {[%clk 00:02:14]} {[%emt 00:01:36]} Qc6 {[%clk 00:06:07]} {[%emt
00:00:50]} 30. Rxd5 {[%clk 00:00:53]} {[%emt 00:01:51]} Ne6 {[%clk 00:06:28]}
{[%emt 00:00:08]} 31. Qd3 {[%clk 00:00:35]} {[%emt 00:00:48]} g6 {[%clk
00:05:56]} {[%emt 00:01:03]} 32. Qb3 {[%clk 00:00:51]} {[%emt 00:00:15]} Qc8
{[%clk 00:02:59]} {[%emt 00:03:27]} 33. a5 {[%clk 00:00:45]} {[%emt 00:00:36]}
Kf7 {[%clk 00:00:42]} {[%emt 00:02:47]} 34. axb6 {[%clk 00:00:56]} {[%emt
00:00:19]} axb6 {[%clk 00:01:11]} 35. Qxb6 {[%clk 00:00:46]} {[%emt 00:00:40]}
Qb8 {[%clk 00:01:04]} {[%emt 00:00:37]} 1/2-1/2